Cogmind - Beta 16.1 @@@ ROGUE MODE // 2026.03.14 @ 22:56:53 Player: zer0hour Result: Destroyed by G-34 Mercenary with Small Laser Performance ------------- Evolutions (0) 0 Regions Visited (1) 200 Robots Destroyed (16) 80 Value Destroyed (358) 358 Prototype IDs (1) 20 Alien Tech Used (0) 0 Bonus (0) 0 TOTAL SCORE: 658 Bonus ------- None Cogmind --------- Core Integrity 0/250 Matter 182/300 Energy 250/250 System Corruption 1% Temperature Cool (11) Movement Walking (120) Location -10/Materials Parts ------- > --- POWER (1) -------- Ion Engine > --- PROPULSION (2) --- Aluminum Leg Aluminum Leg > --- UTILITY (2) ------ Improved Heat Sink Small Storage Unit > --- WEAPON (2) ------- Improved Medium Laser Autogun > --- INVENTORY (8) ---- Ion Engine Aluminum Leg Improved Medium Laser Improved Medium Laser Improved Medium Laser Autogun Autogun Grenade Launcher Peak State ------------ > --- POWER ------------ Ion Engine > --- PROPULSION ------- Aluminum Leg Aluminum Leg > --- UTILITY ---------- Improved Heat Sink Small Storage Unit > --- WEAPON ----------- Improved Medium Laser Autogun > --- INVENTORY -------- Ion Engine Aluminum Leg Improved Medium Laser Improved Medium Laser Improved Medium Laser Autogun Autogun Grenade Launcher [Rating: 13] Favorites ----------- Power Ion Engine Engine Ion Engine Propulsion Aluminum Leg Leg Aluminum Leg Utility Small Storage Unit Device Heat Sink Storage Small Storage Unit Weapon Improved Medium Laser Energy Gun Improved Medium Laser Ballistic Gun Autogun Launcher Grenade Launcher Build | -11 -10 ------- Run | Yrd Mat Slots Evolved . | . . Power . | . . Propulsion . | . . Utility . | . . Weapon . | . . Parts Attached 16 | 6 10 Power 3 | 1 2 Engine 3 | 1 2 Core . | . . Reactor . | . . Propulsion 4 | 2 2 Treads . | . . Leg 4 | 2 2 Wheel . | . . Hover . | . . Flight . | . . Utility 3 | 1 2 Device 2 | . 2 Storage 1 | 1 . Processor . | . . Hackware . | . . Protection . | . . Artifact . | . . Weapon 6 | 2 4 Energy Gun 3 | 2 1 Energy Cannon . | . . Ballistic Gun 2 | . 2 Ballistic Cannon . | . . Launcher 1 | . 1 Special Weapon . | . . Impact Weapon . | . . Slashing Weapon . | . . Piercing Weapon . | . . Special Melee Weapon . | . . Unidentified Prototypes 1 | . 1 Parts Lost 2 | . 2 Power 1 | . 1 Propulsion . | . . Utility . | . . Weapon 1 | . 1 Highest Loss Streak 2 | . 2 To Critical Strikes . | . . Average Backups 5 | 1 6 Power . | . . Propulsion . | . . Utility . | . . Weapon 3 | . 4 Tool/Special . | . . Unused Backups 8 | . 8 Power 2 | . 2 Propulsion . | . . Utility . | . . Weapon 6 | . 6 Tool/Special . | . . Average Slot Usage (%) 94 | . 94 Engine 12 | . 12 Leg 27 | . 27 Device 11 | . 11 Storage 14 | . 14 Energy Gun 15 | . 15 Ballistic Gun 10 | . 10 Peak Build Rating 13 | 6 13 Average Rating 9 | 5 10 On Entrance 3 | . 6 Avg Prop Armor Cover (%) . | . . Naked Turns . | . . Heaviest Build 17 | 12 17 Greatest Support 20 | 20 20 Greatest Overweight (x) 1 | 1 . Average Overweight (x) . | . . Largest Inventory Capacity 8 | 8 8 Average Capacity 7 | 7 8 Most Carried 8 | 2 8 Average Carried 5 | 1 6 Final Capacity 8 | 8 8 Final Carried 8 | 2 8 Class Distribution -------------------- 100% | Mutant Dominant Class ---------------- Mutant | -10/Materials Resources | -11 -10 ----------- Run | Yrd Mat Matter Collected 476 | 245 231 Remotely . | . . Salvage Created 543 | . 543 Parts 25 | . 25 Haulers Intercepted 1 | . 1 Recyclers Shooed 1 | . 1 Parts Field Recycled . | . . Retrieved Matter . | . . Parts Self-Destructed . | . . Prevented . | . . Parts Restored . | . . Kills | -11 -10 ------- Run | Yrd Mat Combat Hostiles Destroyed 10 | . 10 Guns 9 | . 9 AOE 1 | . 1 Classes Destroyed 6 | . 6 Worker 3 | . 3 Hauler 1 | . 1 Recycler 1 | . 1 Watcher 1 | . 1 Swarmer 2 | . 2 Grunt 8 | . 8 Best Kill Streak 6 | . 6 Combat Bots Only 3 | . 3 Max Kills in Single Turn 2 | . 2 Gunslinging 1 | . 1 Exploded 1 | . 1 Melee . | . . Uniques/NPCs Destroyed . | . . Combat | -11 -10 -------- Run | Yrd Mat Hostile Shots Fired 77 | . 77 Missed 21 | . 21 Hits 56 | . 56 Projectile 56 | . 56 Critical Strikes 4 | . 4 Damage Taken 805 | . 805 Core 255 | . 255 Absorbed by Shields . | . . Regen/Repaired (Parts) 119 | . 119 Core Remaining (%) 100 | 100 . Volleys Fired 46 | . 46 Largest 2 | . 2 Hottest 80 | . 80 Shots Fired 90 | . 90 Gun 85 | . 85 Cannon . | . . Launcher 5 | . 5 Special . | . . Kinetic 41 | . 41 Thermal 41 | . 41 Explosive 5 | . 5 Electromagnetic 3 | . 3 Robot Hit Streak 7 | . 7 Robot Miss Streak 5 | . 5 Penetration Max . | . . Secondary Targets 4 | . 4 Max Gunslinging Chain 1 | . 1 Shots Hit Robots 54 | . 54 Core Hits 27 | . 27 Critical Kills . | . . Critical Parts Destroyed . | . . Critical Strikes 1 | . 1 Burn 1 | . 1 Melee Attacks . | . . Impact . | . . Slashing . | . . Piercing . | . . Sneak Attacks . | . . Combat Hostiles . | . . Follow-up Attacks . | . . Damage Inflicted 1068 | . 1068 Guns 759 | . 759 Cannons . | . . Explosions 309 | . 309 Melee . | . . Ramming . | . . Kinetic 371 | . 371 Thermal 358 | . 358 Explosive 309 | . 309 Electromagnetic 30 | . 30 Impact . | . . Slashing . | . . Piercing . | . . Highest Corruption 1 | . 1 Average Corruption 1 | . 1 Corruption Purged . | . . Corruption Blocked . | . . Effects 5 | . 5 Message Errors 1 | . 1 Data Loss (minor) 1 | . 1 Data Loss (major) 2 | . 2 Misfires 1 | . 1 Overload Shots . | . . Overflow Damage 8 | . 8 Projectiles . | . . Explosions 8 | . 8 Melee . | . . Knockbacks . | . . Impact . | . . Kinetic . | . . Secondary . | . . Self-Inflicted Damage . | . . Shots . | . . Rammed . | . . Targets Rammed . | . . Kicked . | . . Crushed . | . . Highest Temperature 152 | . 152 Average Temperature 36 | . 36 Received Heat Transfer 375 | . 375 Siege Activations . | . . Martial Activations . | . . Shielding Activations . | . . Robots Disrupted . | . . Combat Hostiles . | . . Robots Corrupted . | . . Combat Hostiles . | . . Parts Fried . | . . Impact Corruptions . | . . Robots Melted . | . . Combat Hostiles . | . . Parts Melted 2 | . 2 Heat Transferred 925 | . 925 Parts Sabotaged . | . . Parts Stolen . | . . Parts Stripped . | . . Power Chain Reactions . | . . Alert | -11 -10 ------- Run | Yrd Mat Maximum Alert Level . | . . Low Security (%) 100 | 100 100 Level 1 . | . . Level 2 . | . . Level 3 . | . . Level 4 . | . . Level 5 . | . . High Security . | . . Max Security . | . . Peak Influence 116 | . 116 Initial . | . . Average 51 | . 61 Influence Increases 342 | . 342 Destroy 0b10 Robot/C 200 | . 200 Destroy 0b10 Robot/NC 30 | . 30 Destroy Leader 44 | . 44 Successful Hack 4 | . 4 Destroy Structure 19 | . 19 Lose Combat Pursuer 45 | . 45 Influence Decreases 243 | . 243 Time Decay 238 | . 238 Lost Part 5 | . 5 Squads Dispatched 2 | . 2 Investigation 1 | . 1 Extermination . | . . Reinforcement 1 | . 1 Assault . | . . Garrison . | . . Intercept . | . . Searches Triggered . | . . Construction Impeded . | . . Haulers Reinforced . | . . Active Scanning Responses . | . . Cargo Convoy Interrupts . | . . Stealth | -11 -10 --------- Run | Yrd Mat Distress Signals 3 | . 3 Communications Jammed . | . . Distress Signals . | . . Times Spotted 22 | . 22 Peak Tracking Total 6 | . 6 Tactical Retreats 3 | . 3 Traps | -11 -10 ------- Run | Yrd Mat Traps Triggered 2 | . 2 Indirectly . | . . Trap Hack Attempts . | . . Triggered . | . . Disarmed . | . . Reprogrammed . | . . Reused . | . . Traps Extracted . | . . Installed . | . . Triggered . | . . Machines | -11 -10 ---------- Run | Yrd Mat Machines Disabled . | . . Max in Single Turn . | . . Machines Repaired . | . . Machines Dismantled . | . . Machines Sabotaged . | . . Overloaded Fab Kills . | . . Hacking | -11 -10 --------- Run | Yrd Mat Machines Accessed 2 | . 2 Terminals 1 | . 1 Fabricators . | . . Repair Stations 1 | . 1 Recycling Units . | . . Scanalyzers . | . . Garrison Access . | . . Total Hacks 10 | . 10 Successful 6 | . 6 Failed 4 | . 4 Catastrophic . | . . Database Lockouts . | . . Manual . | . . Terminals 4 | . 4 Fabricators . | . . Repair Stations 6 | . 6 Recycling Units . | . . Scanalyzers . | . . Garrison Access . | . . Terminal Hacks . | . . Fabricator Hacks . | . . Repair Station Hacks 6 | . 6 Scan Component 3 | . 3 Repair 3 | . 3 Recycling Unit Hacks . | . . Scanalyzer . | . . Garrison Access Hacks . | . . Unauthorized Hacks . | . . Terminals . | . . Fabricators . | . . Repair Stations . | . . Recycling Units . | . . Scanalyzers . | . . Garrison Access . | . . Data Cores Recovered . | . . Used . | . . Hacking Detections 1 | . 1 Full Trace Events 1 | . 1 Feedback Events . | . . Feedback Blocked . | . . Robot Schematics Acquired . | . . Robots Built . | . . Authchips . | . . Time . | . . Total Robot Build Rating . | . . Part Schematics Acquired . | . . Parts Built . | . . Authchips . | . . Time . | . . Total Part Build Rating . | . . Part Studies Acquired . | . . Parts Repaired 3 | . 3 Time 84 | . 84 Parts Recycled . | . . Recycled Matter . | . . Retrieved Matter . | . . Retrieved Components . | . . Parts Scanalyzed . | . . Part Schematics Acquired . | . . Parts Damaged . | . . Bothacking | -11 -10 ------------ Run | Yrd Mat Used RIF Installer . | . . Robots Hacked . | . . Non-combat . | . . Combat . | . . Robot Hacks Applied . | . . Relay Couplers Released . | . . Fabnet Peak Effective % . | . . Robots Rewired . | . . Allies Hacked . | . . Hacks Repelled . | . . Allies | -11 -10 -------- Run | Yrd Mat Total Allies . | . . Largest Group . | . . Highest-Rated Group . | . . Highest-Rated Ally . | . . Total Orders . | . . Ally Attacks . | . . Total Damage . | . . Kills . | . . Allies Corrupted . | . . Allies Melted . | . . Intel | -11 -10 ------- Run | Yrd Mat Active Infowar (turns) . | . . Robot Analysis Total . | . . Derelict Logs Recovered . | . . Drone Launches . | . . Drone Recoveries . | . . Exploration | -11 -10 ------------- Run | Yrd Mat Turns Passed 739 | 120 619 Spaces Moved 346 | 43 303 Core 5 | 5 . Treads . | . . Legs 341 | 38 303 Wheels . | . . Hover . | . . Flight . | . . Fastest Speed 50 | 50 120 Average Speed 119 | 113 120 Slowest Speed 120 | 120 120 Overloaded Moves . | . . Propulsion Burnouts . | . . Robots Hopped . | . . Potential Cave-ins . | . . Cave-ins Triggered . | . . Exploration Rate (%) 27 | 4 50 Regions Visited 1 Branch Regions . Pre-discovered Areas . | . . Known Exits Taken . | . . Unknown Exits Taken 1 | 1 . Scrap Searched . | . . Spaces Dug . | . . Terrain Destroyed 21 | . 21 Melee . | . . Projectile . | . . AOE 21 | . 21 Terrain Rammed . | . . Walls Destroyed . | . . Machines Disabled . | . . Actions | -11 -10 --------- Run | Yrd Mat Total 589 | 111 478 Wait 153 | 61 92 Move 345 | 42 303 Hop . | . . Pick Up 15 | 2 13 Fast Attach 9 | 6 3 Attach 2 | . 2 Detach . | . . Swap 11 | . 11 Drop 8 | . 8 Fire 46 | . 46 Melee . | . . Ram . | . . Kick . | . . Crush . | . . Escape Stasis . | . . Rewire . | . . Trap . | . . Miscellaneous . | . . Route ------- -11/Scrapyard -10/Materials History --------- Turn | Location | Event 7 | -11/Scrapyard | Discovered new exit (range 16) 121 | -11/Scrapyard | Entered Materials 259 | -10/Materials | Core integrity fell below 50% 310 | -10/Materials | Build established: Mutant 522 | -10/Materials | Core integrity fell below 20% 559 | -10/Materials | Repaired Aluminum Leg 588 | -10/Materials | Repaired Aluminum Leg 621 | -10/Materials | Repaired Autogun 740 | -10/Materials | Destroyed by G-34 Mercenary with Small Laser Last Messages --------------- 00618_ U-05 Engineer lays Concrete. 00619_ U-05 Engineer builds a Wall. 00620_ K-01 Serf cleans the Repair Station. 00621_ Repair station completes Autogun repairs. 00621_ U-05 Engineer builds a Wall. 00621_ Acquired Autogun. 00622_ U-05 Engineer builds a Wall. 00655_ System corrupted: Substantial component data lost. 00673_ K-01 Serf cleans the Processing Tank. 00708_ S-10 Pest destroyed. 00714_ K-01 Serf collects debris. 00715_ S-10 Pest destroyed. 00715_ Switching to secondary target: S-10 Pest. 00719_ K-01 Serf collects debris. 00721_ S-10 Pest destroyed. 00721_ Switching to secondary target: G-34 Mercenary. 00721_ G-34 Mercenary destroyed. 00722_ K-01 Serf collects debris. Map ----- +----------------------------------------------------+ | | | | | | | | | | | | | | | | | | | | | | | ?????????????????????????????????????????????????? | | ????????????????##########???????????????????????? | | ????????????????# #???????????????????????? | | ????????????????# """ #???????????????????????? | | ????#???######### """ #???????????????????????? | | ? + """ ###?????????????????????? | | ???? ???######### """ # ?????????????????????? | | ???? ?########### """ # #########?????????????? | | ???? ?# # # # #?????????????? | | ???? ?# # # # """ #?????????????? | | ???# ## # ! # # """ #?????????????? | | ???# ## ####+##### # """ #?????????????? | | ???# ## ### # #?????????????? | | ???# ## + + """ #?????????????? | | ???# ## ! ### g @ # """ #?????????????? | | #### ## #?# ###### """ #?????????????? | | # ####+######### #????# #?????????????? | | * # ###### #?????????????? | | [* / =%[%! + #?????????????? | | " # *%=[###########?????????????? | | R" # #################*#???????????????????????? | | "" # ?????????????? = #??????????????????????? | | # !???????????? #??????????????????????? | | #### !#?????????? +??????????????????????? | | """# !#?????????? #??????????????????????? | | = # !#????????? #??????????????????????? | | *" !##?????????# ##??????????????????????? | | *" ####??????????# #???????????????????????? | | % " #?????????????# ????????????????????????? | | % " #?????????????# ????????????????????????? | | " #?????????????# ????????????????????????? | | ""## #?????????????# ????????????????????????? | | ????????????# ????????????????????????? | | ##???????????/ ????????????????????????? | | ^ T #????????????? ????????????????????????? | | ^ #????????????????????????????????????????? | | ^ ? #????????????????????????????????????????? | | """"" ? ????????????????????????????????????????? | | """""???????????????????????????????????????????? | +----------------------------------------------------+ Best States ------------- Heat Dissipation 39 Energy Generation 10 Energy Capacity 250 Matter Stores 300 Matter Capacity 300 Sight Range 16 Terrain Scan Density 10 Evasion (%) 55 Item Schematics ----------------- None Robot Schematics ------------------ None Fabricated ------------ Nothing Repaired ---------- Aluminum Leg | 43% | -10/Materials Aluminum Leg | 65% | -10/Materials Autogun | 67% | -10/Materials Studied --------- None Alien Tech Used ----------------- None Achievements -------------- None Challenges ------------ None Game ------ Seed DirtyBattleInterrupter Manual? 0 Play Time 00:11:30 Cumulative 10.3 hours Start 2026.03.14 @ 22:44:44 End 2026.03.14 @ 22:56:53 Sessions 1 Manual Loads 0 Difficulty Rogue Special Mode None Game No. 9 Rogue 9 Adventurer 0 Explorer 0 Win Type - Total 0 Types 0/0/0/0/0/0/0/0/0/0 Lore% 6 Gallery% 11 Achievement% 11 Wizard Run 0 Options --------- Layout 2 ASCII 0 Keyboard 0 Movement Mouse Keybinds 0 Fullscreen 2 Font 24/Smallcaps Map View 50x44 Zoom Use 0% Tactical HUD 1 Map Filters NONE Filters NONE Steam 1 RUN: 15562ec8-7712-4d7e-b777-0266343c28e4